Cogmind - Beta 12 X1 @@@ ROGUE MODE // 2022.07.06 @ 22:04:56 Player: Captain Croissandwich Result: Destroyed by H-77 Assassin with Coil Gun Performance ------------- Evolutions (6) 3000 Regions Visited (24) 4800 Robots Destroyed (215) 1075 Value Destroyed (10366) 10366 Prototype IDs (31) 620 Alien Tech Used (0) 0 Bonus (9101) 9101 TOTAL SCORE: 28962 Bonus ------- High Alert Combat Kills 1678 Follower Combat Kills 3802 Entered Garrisons 800 Used RIF Installer 2500 Entered DSFs 500 Aligned with FarCom 300 Built Enhanced Grunts 300 Friendly Fire -779 Cogmind --------- Core Integrity 0/1150 Matter 27/300 Energy 99/100 System Corruption 2% Temperature Cool (0) Movement Core (50) Location -4/Factory Parts ------- > --- POWER (2) -------- (None) > --- PROPULSION (4) --- (None) > --- UTILITY (10) ----- (None) > --- WEAPON (3) ------- (None) > --- INVENTORY (5) ---- Relay Coupler [NC] (32) Chronowheel Gauss Rifle Remote Datajack Improved Remote Datajack Peak State ------------ > --- POWER ------------ Light Fission Core Quantum Reactor > --- PROPULSION ------- Centrium Heavy Treads Centrium Heavy Treads > --- UTILITY ---------- High-capacity Storage Unit Enhanced Optical Array Improved Light Armor Plating Improved Medium Armor Plating Improved Heavy Armor Plating Relay Coupler [Swarmer] Relay Coupler [Sentry] > --- WEAPON ----------- Advanced KE Penetrator Helical Railgun Helical Railgun > --- INVENTORY -------- Heavy Treads Heavy Treads Heavy Treads Relay Coupler [NC] Relay Coupler [NC] Improved System Restoration Module Chronowheel Gauss Rifle Advanced KE Penetrator Heavy Flak Cannon Heavy Flak Cannon Mass Driver Remote Datajack Remote Datajack Improved Remote Datajack Spear [Rating: 116] Favorites ----------- Power Light Nuclear Core Engine Improved Ion Engine Power Core Light Nuclear Core Reactor Quantum Reactor Propulsion Improved Treads Treads Improved Treads Leg Advanced VSS Leg Wheel Wheel Utility Improved Targeting Computer Device Improved Heat Sink Storage High-capacity Storage Unit Processor Improved Targeting Computer Hackware Relay Coupler [Swarmer] Protection Improved Heavy Armor Plating Weapon Autogun Energy Gun Beam Rifle Ballistic Gun Autogun Ballistic Cannon Heavy Flak Cannon Launcher Mini Grenade Launcher Special Weapon Remote Datajack Slashing Weapon Scythe Piercing Weapon Spear Build | -11 -10 -10 -9 -9 -9 -8 -8 -8 -8 -8 -7 -7 -6 -6 -6 -6 -6 -6 -6 -6 -6 -5 -5 -4 ------- Run | Scr Mat Min Mat Min Exi Min Mat Gar Mat Gar Fac Low Fac Gar Fac Gar Fac Ext Cet Arc Hub Fac DSF Fac Slots Evolved 12 | . . . 2 . . . 2 . . . 2 . 2 . . . . . . . . 2 . 2 Power 1 | . . . . . . . . . . . . . . . . . . . . . . 1 . . Propulsion 2 | . . . 1 . . . 1 . . . . . . . . . . . . . . . . . Utility 8 | . . . 1 . . . 1 . . . 2 . 2 . . . . . . . . . . 2 Weapon 1 | . . . . . . . . . . . . . . . . . . . . . . 1 . . Parts Attached 328 | 4 8 6 8 6 1 2 5 30 19 17 61 . 11 51 1 33 5 10 6 8 1 3 18 14 Power 31 | 1 . 1 2 . . . . 1 1 3 5 . . 6 . 4 . 2 . 2 . 1 1 1 Engine 11 | 1 . . 2 . . . . 1 . 1 . . . . . 4 . 2 . . . . . . Core 18 | . . 1 . . . . . . 1 2 5 . . 6 . . . . . 1 . 1 1 . Reactor 2 | . . . . . . . . . . . . . . . . . . . . 1 . . . 1 Propulsion 76 | 2 . 2 4 . . . 2 4 7 2 20 . 3 14 1 3 1 . 4 . . . . 7 Treads 47 | 2 . 2 4 . . . 2 4 7 2 9 . 1 4 . . . . 3 . . . . 7 Leg 23 | . . . . . . . . . . . 6 . 1 10 1 3 1 . 1 . . . . . Wheel 6 | . . . . . . . . . . . 5 . 1 . . . . . . . . . . . Hover . | . . . . . . . . . . . . . . . . . . . . . . . . . Flight . | . . . . . . . . . . . . . . . . . . . . . . . . . Utility 79 | 1 4 1 1 1 1 . 1 3 1 3 18 . 4 14 . 9 1 1 1 5 . 2 5 2 Device 15 | . . . 1 . 1 . . 2 . . 5 . . . . . . . . 4 . . . 2 Storage 5 | 1 2 . . . . . . 1 . . 1 . . . . . . . . . . . . . Processor 3 | . . 1 . 1 . . . . . . . . . . . . . . . . . . 1 . Hackware 19 | . . . . . . . . . . . 5 . . 7 . 4 1 1 . . . . 1 . Protection 37 | . 2 . . . . . 1 . 1 3 7 . 4 7 . 5 . . 1 1 . 2 3 . Artifact . | . . . . . . . . . . . . . . . . . . . . . . . . . Weapon 142 | . 4 2 1 5 . 2 2 22 10 9 18 . 4 17 . 17 3 7 1 1 1 . 12 4 Energy Gun 9 | . . . . . . . . . 2 1 6 . . . . . . . . . . . . . Energy Cannon . | . . . . . . . . . . . . . . . . . . . . . . . . . Ballistic Gun 56 | . 3 2 . 3 . 1 2 11 4 5 2 . 1 8 . . 2 4 1 1 1 . 4 1 Ballistic Cannon 18 | . . . . . . . . . . . . . . 2 . 6 . . . . . . 7 3 Launcher 17 | . 1 . 1 2 . 1 . 4 3 1 3 . 1 . . . . . . . . . . . Special Weapon 18 | . . . . . . . . . . . 3 . 1 4 . 6 1 2 . . . . 1 . Impact Weapon . | . . . . . . . . . . . . . . . . . . . . . . . . . Slashing Weapon 18 | . . . . . . . . 7 1 2 1 . . 3 . 3 . 1 . . . . . . Piercing Weapon 6 | . . . . . . . . . . . 3 . 1 . . 2 . . . . . . . . Special Melee Weapon . | . . . . . . . . . . . . . . . . . . . . . . . . . Unidentified Prototypes 6 | . . . . . . . . 1 . . 1 . . . . . 2 . 1 1 . . . . Corrupted Parts 4 | . . . . . . . . . . . . . . . . . . . 1 2 . . . 1 System Corruption 13 | . . . . . . . . . . . . . . . . . . . 5 6 . . . 2 Parts Lost 114 | . . 5 3 . . . . 1 5 9 38 . 7 12 . 6 . 1 1 . 1 . 5 20 Power 19 | . . 1 1 . . . . . 1 3 4 . 1 1 . 3 . 1 . . . . . 3 Propulsion 40 | . . 1 2 . . . . 1 2 1 17 . 3 4 . 3 . . 1 . . . . 5 Utility 32 | . . 1 . . . . . . . 3 9 . 2 7 . . . . . . 1 . 3 6 Weapon 23 | . . 2 . . . . . . 2 2 8 . 1 . . . . . . . . . 2 6 Highest Loss Streak 10 | . . 5 2 . . . . 1 5 5 8 . 3 8 . 2 . 1 1 . 1 . 4 10 To Critical Strikes 2 | . . . . . . . . . . . 1 . . 1 . . . . . . . . . . Average Slot Usage (%) 84 | . 98 99 98 100 100 100 97 92 74 75 75 84 71 78 100 93 86 85 72 74 73 76 73 50 Engine 4 | . 14 4 3 11 11 11 9 9 3 1 . . . . . 5 6 5 6 . . . . . Core 3 | . . 9 7 . . . . . 4 6 6 7 5 4 6 . . . . 2 . 5 5 4 Treads 16 | . 28 28 32 33 33 33 36 30 21 21 12 7 6 2 . . . . 9 13 13 11 11 8 Leg 6 | . . . . . . . . . . . 6 23 12 16 26 25 26 26 7 . . . . . Device 3 | . . . 10 11 11 11 9 7 . . 6 7 6 2 . . . . . 4 . . . 4 Storage 8 | . 14 14 11 11 11 11 9 10 16 9 7 7 6 6 6 6 6 6 6 6 6 5 5 4 Processor 4 | . . 8 11 11 11 11 9 9 9 9 4 . . . . . . . . . . . 2 4 Hackware 8 | . . . . . . . . . . . 5 7 6 15 33 25 20 20 20 20 20 17 11 6 Protection 8 | . 13 4 . . . . 6 7 1 9 5 7 10 12 13 17 13 13 8 10 13 17 12 2 Energy Gun 1 | . . . . . . . . . 5 9 5 . . . . . . . . . . . . . Ballistic Gun 10 | . 26 28 21 21 22 20 18 12 10 6 . 7 1 6 . . 8 11 13 13 13 11 7 3 Slashing Weapon 1 | . . . . . . . . 3 . 2 4 7 6 2 6 1 . . . . . . . . Naked Turns 75 | . . . . . . . . . . . . . . . . . . . . . . . . 75 Heaviest Build 176 | 8 29 31 35 35 34 34 39 175 176 157 170 66 89 77 66 84 91 91 85 102 102 107 122 112 Greatest Support 162 | 40 40 43 66 66 66 66 86 162 150 150 118 40 40 66 67 72 82 82 160 160 160 160 160 160 Greatest Overweight (x) 49 | . . . . . . . . 1 1 1 49 1 5 2 . 1 1 1 1 . . . . 1 Average Overweight (x) . | . . . . . . . . . 1 . 2 1 1 . . . 1 . . . . . . . Largest Inventory Capacity 30 | 8 15 15 15 15 15 15 15 30 30 30 30 20 20 20 20 20 20 20 20 20 20 20 20 20 Average Capacity 20 | 6 13 15 15 15 15 15 15 17 30 30 28 20 20 20 20 20 20 20 20 20 20 20 20 17 Most Carried 30 | 4 15 15 15 15 15 15 15 24 27 30 30 18 18 20 20 20 20 20 20 20 20 19 20 19 Average Carried 18 | 2 9 12 13 15 14 15 14 15 24 26 20 17 15 17 20 19 19 19 19 19 20 17 17 15 Final Capacity 30 | 8 15 15 15 15 15 15 15 30 30 30 20 20 20 20 20 20 20 20 20 20 20 20 20 5 Final Carried 28 | 4 15 11 15 15 15 15 15 24 27 28 19 18 12 20 20 19 19 20 18 20 20 17 19 5 Class Distribution -------------------- 29% | Mutant 27% | Bothacker-Mutant 17% | Hauler-Mutant 16% | Botlord-Mutant 7% | Scavenger-Mutant Dominant Class ---------------- Mutant | -10/Materials Mutant | -10/Mines Mutant | -9/Materials Mutant | -9/Mines Mutant | -9/Exiles Mutant | -8/Mines Scavenger-Mutant | -8/Materials Mutant | -8/Garrison Hauler-Mutant | -8/Materials Hauler-Mutant | -8/Garrison Bothacker-Mutant | -7/Factory Bothacker-Mutant | -7/Lower Caves Bothacker-Mutant | -6/Factory Botlord-Mutant | -6/Garrison Botlord-Mutant | -6/Factory Botlord-Mutant | -6/Garrison Botlord-Mutant | -6/Factory Bothacker-Mutant | -6/Extension Bothacker-Mutant | -6/Cetus Bothacker-Mutant | -6/Archives Bothacker-Mutant | -6/Hub_04(d) Bothacker-Mutant | -5/Factory Bothacker-Mutant | -5/DSF Bothacker-Mutant | -4/Factory Resources | -11 -10 -10 -9 -9 -9 -8 -8 -8 -8 -8 -7 -7 -6 -6 -6 -6 -6 -6 -6 -6 -6 -5 -5 -4 ----------- Run | Scr Mat Min Mat Min Exi Min Mat Gar Mat Gar Fac Low Fac Gar Fac Gar Fac Ext Cet Arc Hub Fac DSF Fac Matter Collected 7755 | 185 223 182 257 176 . 24 56 511 567 259 859 . . 1053 . 974 55 585 267 499 186 . 448 389 Remotely . | . . . . . . . . . . . . . . . . . . . . . . . . . Salvage Created 8755 | . 247 164 352 188 . 39 114 741 854 582 2300 . 73 349 . 334 93 528 306 316 502 . 297 376 Parts 452 | . 21 15 27 12 . 3 8 42 63 22 95 . 6 15 . 15 4 18 14 25 22 . 11 14 Haulers Intercepted 8 | . 1 . 1 . . . . . 1 . 3 . . . . . 1 . . . . . . 1 Recyclers Shooed 5 | . 1 . . . . . . . 2 . 2 . . . . . . . . . . . . . Parts Field Recycled . | . . . . . . . . . . . . . . . . . . . . . . . . . Retrieved Matter . | . . . . . . . . . . . . . . . . . . . . . . . . . Parts Self-Destructed . | . . . . . . . . . . . . . . . . . . . . . . . . . Prevented . | . . . . . . . . . . . . . . . . . . . . . . . . . Kills | -11 -10 -10 -9 -9 -9 -8 -8 -8 -8 -8 -7 -7 -6 -6 -6 -6 -6 -6 -6 -6 -6 -5 -5 -4 ------- Run | Scr Mat Min Mat Min Exi Min Mat Gar Mat Gar Fac Low Fac Gar Fac Gar Fac Ext Cet Arc Hub Fac DSF Fac Combat Hostiles Destroyed 183 | . 9 3 10 5 . 3 2 16 24 14 43 . 5 8 . 9 . 7 5 1 8 . 5 6 Melee 23 | . . . . . . . . 2 1 . 18 . 1 . . . . 1 . . . . . . Guns 107 | . 6 3 10 . . . 2 5 20 14 15 . 1 6 . . . 6 5 1 8 . 4 1 Cannons 15 | . . . . . . . . . . . . . . 1 . 8 . . . . . . 1 5 AOE 37 | . 3 . . 5 . 3 . 9 3 . 9 . 3 1 . 1 . . . . . . . . Classes Destroyed 19 | . 3 2 1 1 . . . 2 5 . 2 . . . . 1 . 1 . . . . 1 . Worker 4 | . . 2 . . . . . . . . 1 . . . . . . 1 . . . . . . Builder 4 | . . . . . . . . . 3 . 1 . . . . . . . . . . . . . Tunneler 4 | . . 1 . 1 . . . . 2 . . . . . . . . . . . . . . . Hauler 8 | . 1 . 1 . . . . . 1 . 3 . . . . . 1 . . . . . . 1 Recycler 8 | . . . . 2 . . . . 1 . 4 . . . . . . . . . 1 . . . Mechanic 1 | . . . . . . . . . . . 1 . . . . . . . . . . . . . Operator 8 | . . . . . . . . . 1 . . . . . . . . . . 7 . . . . Swarmer 49 | . 6 1 5 3 . 3 . 9 5 . 3 . 4 2 . 3 . . 1 . 4 . . . Grunt 85 | . 3 1 2 2 . 1 . 5 13 10 29 . 1 2 . 3 . 5 2 . 2 . 2 2 Brawler 4 | . . . . . . . . . 1 . . . . . . 1 . . . . 1 . 1 . Duelist 5 | . . . . . . . . 1 . 1 2 . . 1 . . . . . . . . . . Protector 1 | . . . . . . . . . 1 . . . . . . . . . . . . . . . Sentry 17 | . . . 3 . . . 2 . 3 3 2 . . 1 . 1 . . . 1 1 . . . Specialist 2 | . . . . . . . . 1 . . . . . . . . . . . . . . 1 . Hunter 9 | . . . . . . . . . 1 . 1 . . 3 . . . . . . . . . 4 Programmer 7 | . . . . . . . . . . . 6 . . . . 1 . . . . . . . . Heavy 1 | . . . . . . . . . . . . . . . . . . . . . . . 1 . Behemoth 1 | . . . . . . . . . . . . . . . . . . 1 . . . . . . Cetus Guard 2 | . . . . . . . . . . . . . . . . . . . 2 . . . . . Executioner 1 | . . . . . . . . . . . . . . . . 1 . . . . . . . . Butcher 1 | . . . . . . . . . . . . . . . . . . 1 . . . . . . Best Kill Streak 15 | . 3 2 3 4 . 3 1 9 15 5 5 . 3 2 . 4 1 2 3 2 4 . 2 3 Combat Bots Only 11 | . 3 1 3 3 . 3 1 9 11 5 5 . 3 2 . 4 . 2 3 1 4 . 2 2 Max Kills in Single Turn 5 | . 3 1 1 4 . 2 1 3 5 1 3 . 1 2 . 1 1 2 1 1 2 . 1 1 Gunslinging 1 | . 1 . . . . . . . . . . . . . . . . 1 . . . . . . Exploded 3 | . 3 . . 3 . 2 . 3 2 . 2 . 1 1 . 1 . . . . . . . . Melee 1 | . . . . . . . . 1 1 . 1 . 1 . . . . 1 . . . . . . Uniques/NPCs Destroyed 1 | . . 1 . . . . . . . . . . . . . . . . . . . . . . YI-UF0 (-10/Mines) Combat | -11 -10 -10 -9 -9 -9 -8 -8 -8 -8 -8 -7 -7 -6 -6 -6 -6 -6 -6 -6 -6 -6 -5 -5 -4 -------- Run | Scr Mat Min Mat Min Exi Min Mat Gar Mat Gar Fac Low Fac Gar Fac Gar Fac Ext Cet Arc Hub Fac DSF Fac Damage Taken 23695 | . 286 758 391 116 . 6 142 543 1776 1419 4956 . 1049 2193 . 1487 99 682 267 46 1061 . 2269 4149 Core 3145 | . 57 111 48 53 . . . 63 139 175 615 . 104 262 . 117 . 19 18 . 107 . 94 1163 Absorbed by Shields 433 | . . . . . . . . . . 34 . . . . . . . 307 39 . . . . 53 Reduced by Siege Mode 91 | . . . . . . . . . . 47 . . . . . . . . . . . . 27 17 Redirected to Shielding 10 | . . . . . . . . . . . . . . 10 . . . . . . . . . . Regen/Repaired (Parts) 534 | . 83 . . . . . . . 451 . . . . . . . . . . . . . . . Core Remaining (%) 52 | 100 . 32 . . . 74 . . . 31 . 12 . . . . . . . . 26 . 90 . Volleys Fired 652 | . 31 18 29 9 . 3 9 31 60 44 101 1 10 48 . 55 10 40 21 43 26 . 27 36 Largest 3 | . 2 2 2 2 . 1 2 2 2 2 2 1 1 2 . 2 2 2 2 2 2 . 3 3 Hottest 171 | . 50 46 46 46 . 33 50 50 90 90 145 25 30 106 . 106 76 76 76 76 73 . 171 145 Shots Fired 1155 | . 62 35 58 12 . 3 18 49 106 84 172 1 10 72 . 76 13 72 40 85 52 . 59 76 Gun 909 | . 61 35 58 8 . 1 18 43 98 83 143 1 5 42 . . 6 66 40 85 52 . 38 26 Cannon 132 | . . . . . . . . . . . . . . 7 . 56 . . . . . . 19 50 Launcher 41 | . 1 . . 4 . 2 . 6 8 1 15 . 4 . . . . . . . . . . . Special 73 | . . . . . . . . . . . 14 . 1 23 . 20 7 6 . . . . 2 . Kinetic 844 | . 61 35 58 8 . 1 18 43 69 40 18 1 5 49 . 56 6 66 40 85 52 . 57 76 Thermal 197 | . . . . . . . . . 29 43 125 . . . . . . . . . . . . . Explosive 41 | . 1 . . 4 . 2 . 6 8 1 15 . 4 . . . . . . . . . . . Electromagnetic . | . . . . . . . . . . . . . . . . . . . . . . . . . Robot Hit Streak 26 | . 19 4 12 9 . 5 8 8 11 23 26 2 1 7 . 11 7 12 10 7 6 . 19 5 Robot Miss Streak 8 | . 4 2 2 1 . . 1 3 3 4 3 . 8 7 . 8 1 3 3 4 5 . 3 6 Penetration Max 2 | . . . . . . . . . . . . . . . . . . 1 . 1 2 . 1 1 Secondary Targets 12 | . 1 1 . . . . . . . 4 . . . 2 . . . 1 1 . 2 . . . Max Gunslinging Chain 1 | . 1 1 . . . . . . . 1 . . . 1 . . . 1 1 . 1 . . . Shots Hit Robots 952 | . 42 20 39 9 . 3 14 39 85 68 204 1 12 65 . 67 10 56 30 51 34 . 41 62 Core Hits 601 | . 17 11 15 8 . 4 4 34 88 69 88 1 17 52 . 43 2 18 9 19 18 . 11 73 Critical Kills 10 | . . . . . . . . . . . . . . . . . . . 1 2 4 . 1 2 Critical Parts Destroyed 11 | . . . . . . . . . 1 1 . 1 . . . . . 2 1 1 2 . 1 1 Critical Strikes 37 | . . . . . . . . 1 1 3 11 1 1 . . . . 3 2 3 6 . 2 3 Burn 5 | . . . . . . . . . . 2 3 . . . . . . . . . . . . . Destroy 21 | . . . . . . . . . 1 1 . 1 . . . . . 2 2 3 6 . 2 3 Sever 9 | . . . . . . . . 1 . . 6 . 1 . . . . 1 . . . . . . Impale 2 | . . . . . . . . . . . 2 . . . . . . . . . . . . . Melee Attacks 184 | . . . . . . . . 40 1 8 95 1 13 14 . 5 . 7 . . . . . . Impact . | . . . . . . . . . . . . . . . . . . . . . . . . . Slashing 141 | . . . . . . . . 40 1 8 63 1 3 14 . 4 . 7 . . . . . . Piercing 43 | . . . . . . . . . . . 32 . 10 . . 1 . . . . . . . . Sneak Attacks 5 | . . . . . . . . . . . 5 . . . . . . . . . . . . . Combat Hostiles . | . . . . . . . . . . . . . . . . . . . . . . . . . Follow-up Attacks . | . . . . . . . . . . . . . . . . . . . . . . . . . Damage Inflicted 24318 | . 561 259 596 650 . 285 242 2128 2701 1171 5129 25 475 958 . 901 132 1749 890 1455 1335 . 1265 1411 Guns 13412 | . 428 257 596 91 . 17 234 375 1334 1143 1789 25 13 572 . . 132 1582 890 1455 1326 . 725 428 Cannons 2425 | . . . . . . . . . . . . . . 178 . 901 . . . . . . 520 826 Explosions 4503 | . 133 . . 526 . 268 . 872 1282 28 1052 . 205 . . . . . . . . . . 137 Melee 3737 | . . . . . . . . 827 . . 2278 . 257 208 . . . 167 . . . . . . Ramming 241 | . . 2 . 33 . . 8 54 85 . 10 . . . . . . . . . 9 . 20 20 Kinetic 13210 | . 428 257 596 91 . 17 234 375 922 495 222 25 13 750 . 901 132 1582 890 1455 1326 . 1245 1254 Thermal 2627 | . . . . . . . . . 412 648 1567 . . . . . . . . . . . . . Explosive 4366 | . 133 . . 526 . 268 . 872 1282 28 1052 . 205 . . . . . . . . . . . Electromagnetic 137 | . . . . . . . . . . . . . . . . . . . . . . . . 137 Impact . | . . . . . . . . . . . . . . . . . . . . . . . . . Slashing 2838 | . . . . . . . . 827 . . 1574 . 62 208 . . . 167 . . . . . . Piercing 899 | . . . . . . . . . . . 704 . 195 . . . . . . . . . . . Highest Corruption 13 | . . . . . . . . . . . 9 9 4 4 4 6 6 8 13 13 . . . 2 Average Corruption 6 | . . . . . . . . . . . 7 9 4 4 4 5 6 6 11 8 . . . 2 Corruption Purged 19 | . . . . . . . . . . . . . . . . . . . . 19 . . . . Corruption Blocked . | . . . . . . . . . . . . . . . . . . . . . . . . . Effects 236 | . . . . . . . . . . . 79 1 . 31 1 54 5 34 15 14 . . . 2 Message Errors 56 | . . . . . . . . . . . 21 . . 7 . 13 . 8 5 1 . . . 1 Matter Fused 65 | . . . . . . . . . . . 21 1 . 7 . 17 3 5 7 4 . . . . Heat Flow Errors 23 | . . . . . . . . . . . 11 . . 4 . 3 . 5 . . . . . . Energy Discharges 31 | . . . . . . . . . . . 10 . . 4 1 7 1 6 . 2 . . . . Parts Rejected 5 | . . . . . . . . . . . 1 . . 1 . 1 . 1 1 . . . . . Data Loss (minor) 19 | . . . . . . . . . . . 7 . . 3 . 4 1 2 1 1 . . . . Data Loss (major) 10 | . . . . . . . . . . . 4 . . 1 . 2 . 2 . . . . . 1 Misfires 11 | . . . . . . . . . . . 2 . . 2 . 2 . 3 . 2 . . . . Alerts 9 | . . . . . . . . . . . 1 . . 2 . 4 . 1 . 1 . . . . Weapon Failures 7 | . . . . . . . . . . . 1 . . . . 1 . 1 1 3 . . . . Overload Shots . | . . . . . . . . . . . . . . . . . . . . . . . . . Overflow Damage 157 | . 10 . . 7 . 16 . 5 . 16 84 . . . . . . . . . . . 19 . Projectiles 19 | . . . . . . . . . . . . . . . . . . . . . . . 19 . Explosions 76 | . 10 . . 7 . 16 . 5 . 16 22 . . . . . . . . . . . . . Melee 62 | . . . . . . . . . . . 62 . . . . . . . . . . . . . Knockbacks 34 | . . . . 1 . . . . 2 . . . . . . 16 . . . . . . . 15 Impact 3 | . . . . 1 . . . . 2 . . . . . . . . . . . . . . . Kinetic 31 | . . . . . . . . . . . . . . . . 16 . . . . . . . 15 Secondary . | . . . . . . . . . . . . . . . . . . . . . . . . . Self-Inflicted Damage 99 | . . . . . . . . 19 . 39 41 . . . . . . . . . . . . . Shots 4 | . . . . . . . . 1 . 1 2 . . . . . . . . . . . . . Rammed 36 | . . 1 . 5 . . 1 13 7 . 1 . . . . . . . . . 1 . 1 6 Targets Rammed 40 | . . 1 . 6 . . 1 15 8 . 1 . . . . . . . . . 1 . 1 6 Kicked . | . . . . . . . . . . . . . . . . . . . . . . . . . Crushed 4 | . . . . 1 . . . 2 1 . . . . . . . . . . . . . . . Highest Temperature 526 | . 46 20 1 11 . . . . 193 347 216 . 4 182 . 359 45 314 63 147 150 . 156 526 Average Temperature 77 | . 14 6 1 11 . . . . 61 134 72 . 3 82 . 101 24 84 30 37 41 . 54 200 Received Heat Transfer 4479 | . 108 . 78 51 . . 63 117 846 777 1239 . 81 186 . 201 9 170 45 . 201 . 72 235 Effects 12 | . . . . . . . . . . 1 . . . . . . . 2 . . . . . 9 Shutdowns 2 | . . . . . . . . . . . . . . . . . . . . . . . . 2 Energy Bleed 3 | . . . . . . . . . . . . . . . . . . 2 . . . . . 1 Short Circuit 2 | . . . . . . . . . . 1 . . . . . . . . . . . . . 1 Damage (major) 5 | . . . . . . . . . . . . . . . . . . . . . . . . 5 Siege Activations 5 | . . . . . . . . . . 1 . . . . . . . . . . . . 2 2 Total Turns 53 | . . . . . . . . . . 22 . . . . . . . . . . . . 18 13 Longest Duration 22 | . . . . . . . . . . 22 . . . . . . . . . . . . 16 8 Robots Corrupted . | . . . . . . . . . . . . . . . . . . . . . . . . . Combat Hostiles . | . . . . . . . . . . . . . . . . . . . . . . . . . Parts Fried 1 | . . . . . . . . . . . . . . . . . . . . . . . . 1 Impact Corruptions . | . . . . . . . . . . . . . . . . . . . . . . . . . Robots Melted 1 | . . . . . . . . . . . 1 . . . . . . . . . . . . . Combat Hostiles 1 | . . . . . . . . . . . 1 . . . . . . . . . . . . . Parts Melted 15 | . . . . . . . . . 1 . 12 . . . . 1 . 1 . . . . . . Heat Transferred 5627 | . . . . . . . . . 525 1121 3981 . . . . . . . . . . . . . Parts Sabotaged . | . . . . . . . . . . . . . . . . . . . . . . . . . Parts Stolen 1 | . . . . . . . . . . . . 1 . . . . . . . . . . . . Parts Stripped . | . . . . . . . . . . . . . . . . . . . . . . . . . Power Chain Reactions . | . . . . . . . . . . . . . . . . . . . . . . . . . Missiles Intercepted . | . . . . . . . . . . . . . . . . . . . . . . . . . Alert | -11 -10 -10 -9 -9 -9 -8 -8 -8 -8 -8 -7 -7 -6 -6 -6 -6 -6 -6 -6 -6 -6 -5 -5 -4 ------- Run | Scr Mat Min Mat Min Exi Min Mat Gar Mat Gar Fac Low Fac Gar Fac Gar Fac Ext Cet Arc Hub Fac DSF Fac Peak Influence 1370 | . 199 82 244 189 . 98 164 1071 913 892 688 . 383 1143 608 1370 718 873 740 646 1185 538 476 380 Initial 718 | . . 77 28 51 . . 37 106 521 442 468 . 271 247 599 425 718 345 488 296 156 538 376 249 Average 504 | . 68 50 88 67 . 94 101 646 756 673 463 . 349 737 605 994 705 542 616 529 593 538 406 293 Maximum Alert Level 4 | . . . 1 . . . . 3 3 3 2 . 1 4 2 4 3 3 3 2 4 2 2 1 Low Security (%) 25 | 100 100 100 94 100 . 100 100 11 . . . . . . . . . . . . 23 . . 17 Level 1 12 | . . . 5 . . . . 1 . . 32 . 100 6 . . . 28 . 4 20 . 52 82 Level 2 33 | . . . . . . . . 42 33 55 67 . . 28 100 10 . 53 64 95 19 100 47 . Level 3 24 | . . . . . . . . 44 66 44 . . . 60 . 56 100 18 35 . 23 . . . Level 4 3 | . . . . . . . . . . . . . . 5 . 33 . . . . 12 . . . Level 5 . | . . . . . . . . . . . . . . . . . . . . . . . . . High Security . | . . . . . . . . . . . . . . . . . . . . . . . . . Max Security . | . . . . . . . . . . . . . . . . . . . . . . . . . Squads Dispatched 40 | . 2 . 2 . . . . . 4 . 17 . 2 . . . . 1 1 . 7 . 1 3 Investigation 9 | . . . 2 . . . . . 1 . 3 . . . . . . . 1 . 1 . . 1 Extermination 5 | . . . . . . . . . . . 5 . . . . . . . . . . . . . Reinforcement 14 | . 2 . . . . . . . 2 . 6 . . . . . . . . . 1 . 1 2 Assault 6 | . . . . . . . . . 1 . 2 . . . . . . 1 . . 2 . . . Garrison 6 | . . . . . . . . . . . 1 . 2 . . . . . . . 3 . . . Intercept . | . . . . . . . . . . . . . . . . . . . . . . . . . Searches Triggered . | . . . . . . . . . . . . . . . . . . . . . . . . . Construction Impeded 4 | . . . . . . . . . 1 . 2 . . . . . . . . . . . . 1 Haulers Reinforced 4 | . . . . . . . . . . . 2 . . . . . . . . . 1 . . 1 Active Scanning Responses . | . . . . . . . . . . . . . . . . . . . . . . . . . Cargo Convoy Interrupts . | . . . . . . . . . . . . . . . . . . . . . . . . . Alert ID Control Effect 13 | . . . . . . . . . . . . . . . . 10 1 2 . . . . . . Stealth | -11 -10 -10 -9 -9 -9 -8 -8 -8 -8 -8 -7 -7 -6 -6 -6 -6 -6 -6 -6 -6 -6 -5 -5 -4 --------- Run | Scr Mat Min Mat Min Exi Min Mat Gar Mat Gar Fac Low Fac Gar Fac Gar Fac Ext Cet Arc Hub Fac DSF Fac Distress Signals 11 | . 1 . . . . . . . 1 . 2 . . . . . . 4 1 . 1 . . 1 Communications Jammed . | . . . . . . . . . . . . . . . . . . . . . . . . . Distress Signals . | . . . . . . . . . . . . . . . . . . . . . . . . . Times Spotted 448 | . 15 7 11 8 . 3 4 19 29 14 68 2 10 49 . 49 6 38 13 26 37 . 10 30 Peak Tracking Total 17 | . 4 3 4 4 . 3 1 3 7 5 6 1 4 12 . 8 3 5 6 2 9 . 4 17 Tactical Retreats 14 | . 1 . 1 . . . . 2 1 . 1 . . 1 . 4 . 2 . . . . . 1 Traps | -11 -10 -10 -9 -9 -9 -8 -8 -8 -8 -8 -7 -7 -6 -6 -6 -6 -6 -6 -6 -6 -6 -5 -5 -4 ------- Run | Scr Mat Min Mat Min Exi Min Mat Gar Mat Gar Fac Low Fac Gar Fac Gar Fac Ext Cet Arc Hub Fac DSF Fac Traps Triggered 35 | . . . 1 . . . . 1 . 10 1 . . 7 1 7 . 1 . . 1 . . 5 Indirectly 3 | . . . . . . . . . . . . . . . . . . . . . . . . 3 Trap Hack Attempts . | . . . . . . . . . . . . . . . . . . . . . . . . . Triggered . | . . . . . . . . . . . . . . . . . . . . . . . . . Disarmed . | . . . . . . . . . . . . . . . . . . . . . . . . . Reprogrammed . | . . . . . . . . . . . . . . . . . . . . . . . . . Reused . | . . . . . . . . . . . . . . . . . . . . . . . . . Traps Extracted . | . . . . . . . . . . . . . . . . . . . . . . . . . Installed 2 | . . . . . . . . 2 . . . . . . . . . . . . . . . . Triggered 1 | . . . . . . . . . . . . . . . . 1 . . . . . . . . Machines | -11 -10 -10 -9 -9 -9 -8 -8 -8 -8 -8 -7 -7 -6 -6 -6 -6 -6 -6 -6 -6 -6 -5 -5 -4 ---------- Run | Scr Mat Min Mat Min Exi Min Mat Gar Mat Gar Fac Low Fac Gar Fac Gar Fac Ext Cet Arc Hub Fac DSF Fac Machines Disabled 36 | . . . . . . . . 7 . 2 2 . . 4 . 3 . 2 2 4 4 . 1 5 Max in Single Turn 4 | . . . . . . . . 1 . 1 2 . . 1 . 1 . 1 . 1 1 . 1 4 Garrison Access 1 | . . . . . . . . . . . 1 . . . . . . . . . . . . . Garrison Relay 12 | . . . . . . . . 3 . 2 . . . 4 . 3 . . . . . . . . Energy Cycler 1 | . . . . . . . . . . . . . . . . . . 1 . . . . . . Machines Sabotaged . | . . . . . . . . . . . . . . . . . . . . . . . . . Garrisons Compromised . | . . . . . . . . . . . . . . . . . . . . . . . . . Overloaded Fab Kills . | . . . . . . . . . . . . . . . . . . . . . . . . . Hacking | -11 -10 -10 -9 -9 -9 -8 -8 -8 -8 -8 -7 -7 -6 -6 -6 -6 -6 -6 -6 -6 -6 -5 -5 -4 --------- Run | Scr Mat Min Mat Min Exi Min Mat Gar Mat Gar Fac Low Fac Gar Fac Gar Fac Ext Cet Arc Hub Fac DSF Fac Machines Accessed 56 | . 6 . 2 1 2 . 5 3 4 1 8 . 1 3 1 1 . 9 1 . 5 1 . 2 Terminals 40 | . 4 . 1 1 . . 3 3 2 1 5 . . 3 . 1 . 9 1 . 4 1 . 1 Fabricators . | . . . . . . . . . . . . . . . . . . . . . . . . . Repair Stations 3 | . 1 . . . . . . . 1 . 1 . . . . . . . . . . . . . Recycling Units 4 | . 1 . 1 . . . 1 . . . 1 . . . . . . . . . . . . . Scanalyzers 1 | . . . . . . . . . . . . . . . . . . . . . . . . 1 Garrison Access 6 | . . . . . . . 1 . 1 . 1 . 1 . 1 . . . . . 1 . . . Total Hacks 139 | . 23 . 5 5 2 . 14 8 11 1 16 . 1 6 1 3 . 14 2 . 19 1 . 7 Successful 65 | . 14 . 5 1 2 . 7 2 6 1 5 . 1 3 1 . . 5 . . 7 1 . 4 Failed 73 | . 9 . . 3 . . 7 6 5 . 11 . . 3 . 3 . 9 2 . 12 . . 3 Catastrophic 16 | . 1 . . . . . 1 1 1 . 4 . . . . 1 . 5 1 . 1 . . . Database Lockouts 1 | . . . . 1 . . . . . . . . . . . . . . . . . . . . Manual 73 | . 18 . 4 6 1 . 8 1 4 . 9 . . . . . . 4 1 . 14 . . 3 Terminals 99 | . 17 . 3 5 . . 7 8 5 1 9 . . 6 . 3 . 14 2 . 15 1 . 3 Fabricators . | . . . . . . . . . . . . . . . . . . . . . . . . . Repair Stations 12 | . 4 . . . . . . . 5 . 3 . . . . . . . . . . . . . Recycling Units 11 | . 2 . 2 . . . 5 . . . 2 . . . . . . . . . . . . . Scanalyzers 4 | . . . . . . . . . . . . . . . . . . . . . . . . 4 Garrison Access 11 | . . . . . . . 2 . 1 . 2 . 1 . 1 . . . . . 4 . . . Terminal Hacks 28 | . 5 . 2 1 2 . 2 2 1 1 1 . . 3 . . . 4 . . 2 1 . 1 Record 1 | . . . . . 1 . . . . . . . . . . . . . . . . . . . Robot Analysis 2 | . 1 . . 1 . . . . . . . . . . . . . . . . . . . . Prototype ID Bank 1 | . 1 . . . . . . . . . . . . . . . . . . . . . . . Open Door 3 | . . . . . . . . . . . . . . 1 . . . 2 . . . . . . Open DSF 2 | . . . . . . . . . . . 1 . . . . . . . . . . 1 . . Branch Access Points 1 | . . . 1 . . . . . . . . . . . . . . . . . . . . . Emergency Access Points 5 | . . . . . . . . 1 . 1 . . . 1 . . . . . . 1 . . 1 Terminal Index 4 | . 1 . 1 . . . 1 . . . . . . . . . . . . . 1 . . . Unreport Threat 1 | . . . . . . . . . 1 . . . . . . . . . . . . . . . Locate Traps 1 | . . . . . . . . . . . . . . . . . . 1 . . . . . . Recall Reinforcements 1 | . 1 . . . . . . . . . . . . . . . . . . . . . . . Zone Layout 3 | . 1 . . . . . 1 . . . . . . . . . . 1 . . . . . . Garrison Registry 1 | . . . . . . . . 1 . . . . . . . . . . . . . . . . Security Stations 1 | . . . . . . . . . . . . . . 1 . . . . . . . . . . EX-Prototype ID Bank 1 | . . . . . 1 . . . . . . . . . . . . . . . . . . . Fabricator Hacks . | . . . . . . . . . . . . . . . . . . . . . . . . . Repair Station Hacks 8 | . 3 . . . . . . . 4 . 1 . . . . . . . . . . . . . Scan Component 5 | . 2 . . . . . . . 2 . 1 . . . . . . . . . . . . . Repair 3 | . 1 . . . . . . . 2 . . . . . . . . . . . . . . . Recycling Unit Hacks 2 | . . . . . . . 2 . . . . . . . . . . . . . . . . . Report Inventory 1 | . . . . . . . 1 . . . . . . . . . . . . . . . . . Retrieve Components 1 | . . . . . . . 1 . . . . . . . . . . . . . . . . . Scanalyzer 3 | . . . . . . . . . . . . . . . . . . . . . . . . 3 Insert Component 1 | . . . . . . . . . . . . . . . . . . . . . . . . 1 Analyze 2 | . . . . . . . . . . . . . . . . . . . . . . . . 2 Garrison Access Hacks 7 | . . . . . . . 1 . 1 . 2 . 1 . 1 . . . . . 1 . . . Unlock Access 5 | . . . . . . . 1 . 1 . . . 1 . 1 . . . . . 1 . . . Seal Access 1 | . . . . . . . . . . . 1 . . . . . . . . . . . . . Coupler Status 1 | . . . . . . . . . . . 1 . . . . . . . . . . . . . Unauthorized Hacks 17 | . 6 . 3 . . . 2 . . . 1 . . . . . . 1 . . 4 . . . Terminals 12 | . 5 . 1 . . . 1 . . . . . . . . . . 1 . . 4 . . . Botnet 10 | . 4 . 1 . . . 1 . . . . . . . . . . 1 . . 3 . . . Operators 2 | . 1 . . . . . . . . . . . . . . . . . . . 1 . . . Fabricators . | . . . . . . . . . . . . . . . . . . . . . . . . . Repair Stations . | . . . . . . . . . . . . . . . . . . . . . . . . . Recycling Units 5 | . 1 . 2 . . . 1 . . . 1 . . . . . . . . . . . . . Monitor 4 | . 1 . 1 . . . 1 . . . 1 . . . . . . . . . . . . . Tunnel 1 | . . . 1 . . . . . . . . . . . . . . . . . . . . . Scanalyzers . | . . . . . . . . . . . . . . . . . . . . . . . . . Garrison Access . | . . . . . . . . . . . . . . . . . . . . . . . . . Data Cores Recovered 1 | . . . . . . . . . . . . . . . . . . . . . 1 . . . Used . | . . . . . . . . . . . . . . . . . . . . . . . . . Hacking Detections 49 | . 6 . 2 1 . . 5 3 3 1 7 . 1 2 1 1 . 8 1 . 5 . . 2 Full Trace Events 9 | . . . . . . . . . 1 . 3 . . 1 . 1 . . 1 . 1 . . 1 Feedback Events . | . . . . . . . . . . . . . . . . . . . . . . . . . Feedback Blocked . | . . . . . . . . . . . . . . . . . . . . . . . . . Robot Schematics Acquired . | . . . . . . . . . . . . . . . . . . . . . . . . . Robots Built . | . . . . . . . . . . . . . . . . . . . . . . . . . Authchips . | . . . . . . . . . . . . . . . . . . . . . . . . . Time . | . . . . . . . . . . . . . . . . . . . . . . . . . Total Robot Build Rating . | . . . . . . . . . . . . . . . . . . . . . . . . . Part Schematics Acquired 1 | . . . . . . . . . . . . . . . . . . . . . . . . 1 Parts Built . | . . . . . . . . . . . . . . . . . . . . . . . . . Authchips . | . . . . . . . . . . . . . . . . . . . . . . . . . Time . | . . . . . . . . . . . . . . . . . . . . . . . . . Total Part Build Rating . | . . . . . . . . . . . . . . . . . . . . . . . . . Parts Repaired 3 | . 1 . . . . . . . 2 . . . . . . . . . . . . . . . Time 150 | . 26 . . . . . . . 124 . . . . . . . . . . . . . . . Parts Recycled . | . . . . . . . . . . . . . . . . . . . . . . . . . Recycled Matter . | . . . . . . . . . . . . . . . . . . . . . . . . . Retrieved Matter . | . . . . . . . . . . . . . . . . . . . . . . . . . Retrieved Components 3 | . . . . . . . 3 . . . . . . . . . . . . . . . . . Parts Scanalyzed 1 | . . . . . . . . . . . . . . . . . . . . . . . . 1 Part Schematics Acquired 1 | . . . . . . . . . . . . . . . . . . . . . . . . 1 Parts Damaged . | . . . . . . . . . . . . . . . . . . . . . . . . . Bothacking | -11 -10 -10 -9 -9 -9 -8 -8 -8 -8 -8 -7 -7 -6 -6 -6 -6 -6 -6 -6 -6 -6 -5 -5 -4 ------------ Run | Scr Mat Min Mat Min Exi Min Mat Gar Mat Gar Fac Low Fac Gar Fac Gar Fac Ext Cet Arc Hub Fac DSF Fac Used RIF Installer 5 | . . . . . . . . 1 . 2 . . . 1 . 1 . . . . . . . . Command Fork 1 | . . . . . . . . . . 1 . . . . . . . . . . . . . . Patrol Navigation 1 | . . . . . . . . . . 1 . . . . . . . . . . . . . . Alert ID Control 1 | . . . . . . . . . . . . . . 1 . . . . . . . . . . Autoassimilate 1 | . . . . . . . . . . . . . . . . 1 . . . . . . . . Robots Hacked 41 | . . . . . . . . . . . 7 . 1 10 . 13 4 4 . . . . 2 . Non-combat 1 | . . . . . . . . . . . . . . . . . 1 . . . . . . . Combat 40 | . . . . . . . . . . . 7 . 1 10 . 13 3 4 . . . . 2 . Robot Hacks Applied 41 | . . . . . . . . . . . 7 . 1 10 . 13 4 4 . . . . 2 . map_route 1 | . . . . . . . . . . . . . . . . . 1 . . . . . . . scatter_targeting 1 | . . . . . . . . . . . . . . 1 . . . . . . . . . . disrupt_area 1 | . . . . . . . . . . . . . . . . . . 1 . . . . . . overload_power 1 | . . . . . . . . . . . 1 . . . . . . . . . . . . . amplify_resonance 9 | . . . . . . . . . . . 1 . . 5 . 2 1 . . . . . . . wipe_record 1 | . . . . . . . . . . . . . 1 . . . . . . . . . . . disable_weapons 1 | . . . . . . . . . . . . . . . . . . 1 . . . . . . reboot_system 2 | . . . . . . . . . . . . . . . . 1 . . . . . . 1 . overwrite_iff 5 | . . . . . . . . . . . 2 . . . . 3 . . . . . . . . streamctrl_high 1 | . . . . . . . . . . . . . . . . 1 . . . . . . . . formatsys_high 18 | . . . . . . . . . . . 3 . . 4 . 6 2 2 . . . . 1 . Relay Couplers Released 47 | . . . . . . . . 10 . 8 . . . 15 . 14 . . . . . . . . Machine Destruction 47 | . . . . . . . . 10 . 8 . . . 15 . 14 . . . . . . . . Attached 19 | . . . . . . . . . . . 5 . . 7 . 4 1 1 . . . . 1 . Fabnet Peak Effective % . | . . . . . . . . . . . . . . . . . . . . . . . . . Robots Rewired 24 | . . . . . . . . . . . . . . 6 . 5 . 13 . . . . . . Allies Hacked . | . . . . . . . . . . . . . . . . . . . . . . . . . Hacks Repelled . | . . . . . . . . . . . . . . . . . . . . . . . . . Allies | -11 -10 -10 -9 -9 -9 -8 -8 -8 -8 -8 -7 -7 -6 -6 -6 -6 -6 -6 -6 -6 -6 -5 -5 -4 -------- Run | Scr Mat Min Mat Min Exi Min Mat Gar Mat Gar Fac Low Fac Gar Fac Gar Fac Ext Cet Arc Hub Fac DSF Fac Total Allies 67 | . . 1 . 3 . . . . . . 6 1 . 14 . 16 2 18 5 . . . 1 . Largest Group 16 | . . 1 1 3 1 . . . . . 4 1 . 5 4 7 3 16 5 5 5 . 1 . Highest-Rated Group 616 | . . 31 31 40 16 . . . . . 93 135 . 230 164 254 151 616 480 480 473 . 41 . Highest-Rated Ally 159 | . . 31 31 16 16 . . . . . 32 135 . 73 41 119 119 159 159 96 96 . 41 . Total Orders 2 | . . . . . . . . . . . . . . . . . . . . 2 . . . . STAY 1 | . . . . . . . . . . . . . . . . . . . . 1 . . . . FOLLOW 1 | . . . . . . . . . . . . . . . . . . . . 1 . . . . Ally Attacks 585 | . . 4 2 25 . . . . . . 43 . . 89 1 128 10 173 30 22 49 . 9 . Total Damage 15668 | . . 86 22 297 . . . . . . 571 . . 2210 29 4309 130 4145 877 755 1898 . 339 . Kills 122 | . . 2 . 4 . . . . . . 4 . . 20 1 32 1 31 6 3 16 . 2 . Allies Corrupted 4 | . . . . . . . . . . . . . . . . 2 . 1 . . . . 1 . Allies Melted 4 | . . . . . . . . . . . 1 . . . . . . 2 1 . . . . . Intel | -11 -10 -10 -9 -9 -9 -8 -8 -8 -8 -8 -7 -7 -6 -6 -6 -6 -6 -6 -6 -6 -6 -5 -5 -4 ------- Run | Scr Mat Min Mat Min Exi Min Mat Gar Mat Gar Fac Low Fac Gar Fac Gar Fac Ext Cet Arc Hub Fac DSF Fac Robot Analysis Total 2 | . 1 . . 1 . . . . . . . . . . . . . . . . . . . . Derelict Logs Recovered 2 | . . 1 . 1 . . . . . . . . . . . . . . . . . . . . Drone Launches . | . . . . . . . . . . . . . . . . . . . . . . . . . Drone Recoveries . | . . . . . . . . . . . . . . . . . . . . . . . . . Exploration | -11 -10 -10 -9 -9 -9 -8 -8 -8 -8 -8 -7 -7 -6 -6 -6 -6 -6 -6 -6 -6 -6 -5 -5 -4 ------------- Run | Scr Mat Min Mat Min Exi Min Mat Gar Mat Gar Fac Low Fac Gar Fac Gar Fac Ext Cet Arc Hub Fac DSF Fac Turns Passed 19699 | 78 765 1164 512 1364 541 80 394 1883 930 1498 2888 8 182 1427 141 1796 249 1159 389 547 718 53 371 562 Spaces Moved 9086 | 46 387 692 242 824 336 41 204 938 243 531 819 2 51 865 121 848 122 481 116 252 398 32 152 343 Core 146 | 4 . . . . . . . . . . 5 . . . . . . . . . . . . 137 Treads 6020 | 42 387 692 242 824 336 41 204 938 243 531 412 . 1 . . . . . 87 252 398 32 152 206 Legs 2460 | . . . . . . . . . . . 307 2 41 509 121 848 122 481 29 . . . . . Wheels 460 | . . . . . . . . . . . 95 . 9 356 . . . . . . . . . . Hover . | . . . . . . . . . . . . . . . . . . . . . . . . . Flight . | . . . . . . . . . . . . . . . . . . . . . . . . . Fastest Speed 50 | 50 160 160 160 160 160 160 160 160 240 160 146 190 130 105 105 105 180 100 160 160 160 160 160 50 Average Speed 174 | 150 160 160 160 160 160 160 160 171 240 240 269 190 221 124 105 172 180 175 173 160 160 160 160 116 Slowest Speed 2500 | 160 160 160 160 160 160 160 162 240 243 243 2500 190 470 190 105 185 185 180 240 160 160 160 160 240 Overloaded Moves . | . . . . . . . . . . . . . . . . . . . . . . . . . Propulsion Burnouts . | . . . . . . . . . . . . . . . . . . . . . . . . . Robots Hopped . | . . . . . . . . . . . . . . . . . . . . . . . . . Cave-ins Triggered . | . . . . . . . . . . . . . . . . . . . . . . . . . Exploration Rate (%) 44 | 3 66 99 26 99 70 12 23 70 33 63 25 2 3 85 6 77 5 76 47 89 44 2 71 13 Regions Visited 24 Branch Regions 9 Pre-discovered Areas 4 | . . 1 1 1 1 . . . . . . . . . . . . . . . . . . . Known Exits Taken 7 | . . 1 1 . . . 1 . 1 . . . 1 . 1 . . . . . . 1 . . Unknown Exits Taken 12 | 1 1 . . 1 1 1 . . . . 1 1 . . . . 1 1 1 1 1 . . . Scrap Searched 3 | . . 1 . 2 . . . . . . . . . . . . . . . . . . . . Spaces Dug 37 | . 12 . . 10 . . . 1 1 . 12 . 1 . . . . . . . . . . . Terrain Destroyed 354 | . 12 . . 33 . 12 . 23 66 9 74 . 22 . . . . 30 13 33 18 . 4 5 Melee 4 | . . . . . . . . 1 1 . 1 . 1 . . . . . . . . . . . Projectile 89 | . . . . . . . . . . . . . . . . . . 16 13 33 18 . 4 5 AOE 261 | . 12 . . 33 . 12 . 22 65 9 73 . 21 . . . . 14 . . . . . . Terrain Rammed . | . . . . . . . . . . . . . . . . . . . . . . . . . Walls Destroyed . | . . . . . . . . . . . . . . . . . . . . . . . . . Machines Disabled . | . . . . . . . . . . . . . . . . . . . . . . . . . Actions | -11 -10 -10 -9 -9 -9 -8 -8 -8 -8 -8 -7 -7 -6 -6 -6 -6 -6 -6 -6 -6 -6 -5 -5 -4 --------- Run | Scr Mat Min Mat Min Exi Min Mat Gar Mat Gar Fac Low Fac Gar Fac Gar Fac Ext Cet Arc Hub Fac DSF Fac Total 11494 | 53 475 719 321 855 340 52 257 1097 481 657 1172 5 88 1131 135 1107 142 714 265 308 426 34 225 435 Wait 632 | . 35 . 32 5 . 7 30 13 137 27 71 . 2 23 7 71 . 28 111 . . . 11 22 Move 9065 | 45 386 691 241 823 335 40 203 937 243 530 818 1 51 864 121 847 121 480 115 251 397 31 151 343 Hop . | . . . . . . . . . . . . . . . . . . . . . . . . . Pick Up 169 | 4 13 2 9 3 2 . 4 14 10 13 18 1 . 34 . 18 2 2 5 2 . . 8 5 Fast Attach 76 | 4 2 . . . . . 1 5 . 1 20 . 4 13 . 5 2 2 3 5 1 . 5 3 Attach 110 | . 2 5 5 . . . 1 2 10 10 25 . 4 15 . 8 . . 3 1 . 3 6 10 Detach 14 | . . . . . . . . . 3 . 3 . 1 3 . 2 1 . . 1 . . . . Swap 142 | . 4 1 3 6 1 2 3 23 9 6 16 . 3 23 1 20 3 8 . 2 . . 7 1 Drop 93 | . 2 1 2 3 2 . 5 15 . 3 4 1 . 17 1 16 3 . 7 3 . . 5 3 Fire 652 | . 31 18 29 9 . 3 9 31 60 44 101 1 10 48 . 55 10 40 21 43 26 . 27 36 Melee 184 | . . . . . . . . 40 1 8 95 1 13 14 . 5 . 7 . . . . . . Ram . | . . . . . . . . . . . . . . . . . . . . . . . . . Kick . | . . . . . . . . . . . . . . . . . . . . . . . . . Crush 40 | . . 1 . 6 . . 1 15 8 . 1 . . . . . . . . . 1 . 1 6 Escape Stasis 101 | . . . . . . . . . . 15 . . . 50 5 20 . 5 . . . . . 6 Rewire 214 | . . . . . . . . . . . . . . 27 . 40 . 142 . . 1 . 4 . Trap 2 | . . . . . . . . 2 . . . . . . . . . . . . . . . . Miscellaneous . | . . . . . . . . . . . . . . . . . . . . . . . . . Route ------- -11/Scrapyard -10/Materials (discovered 3 exits: *Mat x2 / [*Min]) -10/Mines (discovered 2 exits: *Mat x2) -9/Materials (discovered 3 exits: *Min / Sto x2) -9/Mines (discovered 3 exits: *Mat x2 / *Exi) -9/Exiles -8/Mines -8/Materials (discovered 2 exits: *Fac / Gar) -8/Garrison (discovered 3 exits: *Mat x3) -8/Materials -8/Garrison (discovered 3 exits: *Fac x3) -7/Factory (discovered 2 exits: *Fac / [*Low]) -7/Lower Caves -6/Factory -6/Garrison (discovered 3 exits: *Fac x3) -6/Factory -6/Garrison (discovered 4 exits: *Fac x3 / [*Fac]) -6/Factory (discovered 2 exits: *Fac / *Ext) -6/Extension (discovered 2 exits: *Fac / *Cet) -6/Cetus -6/Archives (discovered 3 exits: *Fac / *Hub x2) -6/Hub_04(d) (discovered 4 exits: *Fac x3 / Gar) -5/Factory -5/DSF -4/Factory History --------- Turn | Location | Event 19 | -11/Scrapyard | Discovered new exit (range 15) 79 | -11/Scrapyard | Entered Materials 316 | -10/Materials | Build established: Mutant 416 | -10/Materials | Discovered new exit (range 12) 523 | -10/Materials | Discovered new exit (range 11) 713 | -10/Materials | Discovered new exit (range 10) 816 | -10/Materials | Repaired Lgt. Armor Plating 844 | -10/Materials | Entered Mines 853 | -10/Mines | Met a Derelict bent on vengeance 868 | -10/Mines | Discovered new exit (range 12) 1038 | -10/Mines | Identified exit to Materials 1263 | -10/Mines | Core integrity fell below 50% 1274 | -10/Mines | Destroyed YI-UF0 1299 | -10/Mines | Lost 5 parts (1p1n1u2w) 1346 | -10/Mines | Escorted by a lone wolf Derelict 1366 | -10/Mines | Learned location of Storage (-9) 2008 | -10/Mines | Entered Materials 2008 | -9/Materials | Accompanied by 1 ally 2008 | -9/Materials | Evolved 2 slots: Propulsion x1, Utility x1 2304 | -9/Materials | Discovered new exit (range 11) 2388 | -9/Materials | Identified exit to Mines 2388 | -9/Materials | Identified exit to Storage 2520 | -9/Materials | Entered Mines 2528 | -9/Mines | Assisted by bots powering up and referring to "LRC-V3" 2788 | -9/Mines | Received a Rocket Launcher from a helpful Derelict 2990 | -9/Mines | Discovered new exit (range 8) 3100 | -9/Mines | Learned location of 1 exit from Proximity Caves 3106 | -9/Mines | Found a damaged Exp. Sensor Array with a note attached 3110 | -9/Mines | Found Prototype Device 3535 | -9/Mines | Central database locked down 3612 | -9/Mines | Discovered new exit (range 11) 3877 | -9/Mines | Deemed a non-threat by the Exiles lab entrance 3877 | -9/Mines | Discovered new exit (range 5) 3884 | -9/Mines | Entered Exiles 3884 | -9/Exiles | Accompanied by 1 ally 3921 | -9/Exiles | Met 8R-AWN 3948 | -9/Exiles | Met EX-HEX 4012 | -9/Exiles | Met EX-DEC 4020 | -9/Exiles | Learned location of Zion (-6) 4046 | -9/Exiles | Met EX-BIN 4068 | -9/Exiles | Aligned with FarCom system 4070 | -9/Exiles | Given EX-Vault access code 4107 | -9/Exiles | Opened EX-Vault 4120 | -9/Exiles | Found Field Lobotomy Kit 4130 | -9/Exiles | Found Chronowheel 4163 | -9/Exiles | Warned to stay clear of 0b10 Research branches 4412 | -9/Exiles | Discovered new exit (range 10) 4425 | -9/Exiles | Stole two prototypes: Field Lobotomy Kit, Chronowheel 4425 | -9/Exiles | Entered Mines 4425 | -8/Mines | Accompanied by 1 ally 4427 | -8/Mines | Discovered new exit (range 12) 4505 | -8/Mines | Entered Materials 4505 | -8/Materials | Evolved 2 slots: Propulsion x1, Utility x1 4715 | -8/Materials | Discovered new exit (range 16) 4805 | -8/Materials | Build established: Scavenger-Mutant 4823 | -8/Materials | Identified exit to Garrison 4899 | -8/Materials | Entered Garrison 4970 | -8/Garrison | Triggered checkpoint 5005 | -8/Garrison | Garrison Relay disabled 5103 | -8/Garrison | Triggered checkpoint 5106 | -8/Garrison | Triggered checkpoint 5112 | -8/Garrison | Build established: Mutant 5160 | -8/Garrison | Destroyed 9 combat bots 5209 | -8/Garrison | Discovered new exit (range 11) 5286 | -8/Garrison | Triggered checkpoint 5793 | -8/Garrison | Discovered new exit (range 13) 5793 | -8/Garrison | Discovered new exit (range 42) 5793 | -8/Garrison | Discovered new exit (range 74) 5809 | -8/Garrison | Garrison Relay disabled 5934 | -8/Garrison | Triggered checkpoint 5983 | -8/Garrison | Installed Relay Interface Framework 6430 | -8/Garrison | Garrison Relay disabled 6479 | -8/Garrison | Build established: Scavenger-Mutant 6782 | -8/Garrison | Entered Materials 6788 | -8/Materials | Build established: Hauler-Mutant 7057 | -8/Materials | Repaired Imp. Heavy Treads 7139 | -8/Materials | Repaired Imp. Heavy Treads 7182 | -8/Materials | First assault squad dispatched 7262 | -8/Materials | Lost 5 parts (1p2n2w) 7298 | -8/Materials | Destroyed 11 combat bots 7712 | -8/Materials | Identified exit to Garrison 7712 | -8/Materials | Entered Garrison 7732 | -8/Garrison | Triggered checkpoint 7806 | -8/Garrison | Expanded RIF knowledge: Command Fork 7924 | -8/Garrison | Triggered checkpoint 8010 | -8/Garrison | Garrison Relay disabled 8059 | -8/Garrison | Expanded RIF knowledge: Patrol Navigation 8206 | -8/Garrison | Core integrity fell below 50% 8282 | -8/Garrison | Lost 5 parts (1p2u2w) 8389 | -8/Garrison | Discovered new exit (range 8) 8588 | -8/Garrison | Lost 3 parts (1p1n1u) 8602 | -8/Garrison | Triggered checkpoint 8674 | -8/Garrison | Discovered new exit (range 12) 8800 | -8/Garrison | Triggered checkpoint 8829 | -8/Garrison | Build established: Scavenger-Mutant 8882 | -8/Garrison | Discovered new exit (range 15) 9136 | -8/Garrison | Garrison Relay disabled 9210 | -8/Garrison | Entered Factory 9210 | -7/Factory | Evolved 2 slots: Utility x2 9212 | -7/Factory | FarCom data flow suspended 9420 | -7/Factory | Identified Exp. Sensor Array 9441 | -7/Factory | Build established: Hauler-Mutant 10071 | -7/Factory | Lost 3 parts (2n1u) 10243 | -7/Factory | Build established: Bothacker-Mutant 10661 | -7/Factory | Discovered new exit (range 15) 10787 | -7/Factory | Lost 6 parts (3n1u2w) 10810 | -7/Factory | First assault squad dispatched 11016 | -7/Factory | Core integrity fell below 50% 11042 | -7/Factory | Lost 8 parts (1p4n2u1w) 11080 | -7/Factory | Lost 3 parts (1n1u1w) 11337 | -7/Factory | Build established: Hauler-Mutant 11566 | -7/Factory | Lost 3 parts (1p2n) 11680 | -7/Factory | Core integrity fell below 20% 11932 | -7/Factory | Garrison activated, responded to threat 11989 | -7/Factory | Build established: Bothacker-Mutant 12039 | -7/Factory | Discovered new exit (range 15) 12098 | -7/Factory | Entered Lower Caves 12098 | -7/Lower Caves | Spotted ZJ-Q2X(f) 12099 | -7/Lower Caves | 99-TNT showed up to help 12099 | -7/Lower Caves | Encountered a Master Thief 12099 | -7/Lower Caves | Field Lobotomy Kit stolen by Master Thief 12101 | -7/Lower Caves | 99-TNT revealed a hidden path 12106 | -7/Lower Caves | Entered Factory 12106 | -6/Factory | Evolved 2 slots: Utility x2 12136 | -6/Factory | Garrison activated, responded to threat 12188 | -6/Factory | Lost 3 parts (1n1u1w) 12288 | -6/Factory | Identified exit to Garrison 12288 | -6/Factory | Entered Garrison 12312 | -6/Garrison | Lost 3 parts (1p1n1u) 12374 | -6/Garrison | Triggered checkpoint 12414 | -6/Garrison | Garrison Relay disabled 12490 | -6/Garrison | Triggered checkpoint 12495 | -6/Garrison | Triggered checkpoint 12582 | -6/Garrison | Triggered checkpoint 12669 | -6/Garrison | Discovered new exit (range 14) 12696 | -6/Garrison | Found embedded Infiltrators 12712 | -6/Garrison | Expanded RIF knowledge: Alert ID Control 12768 | -6/Garrison | Triggered checkpoint 12810 | -6/Garrison | Garrison Relay disabled 12987 | -6/Garrison | Lost 8 parts (3n5u) 13126 | -6/Garrison | Build established: Botlord-Mutant 13218 | -6/Garrison | Discovered new exit (range 9) 13233 | -6/Garrison | Learned Factory security intel 13246 | -6/Garrison | Triggered checkpoint 13268 | -6/Garrison | Garrison Relay disabled 13490 | -6/Garrison | Triggered checkpoint 13500 | -6/Garrison | Discovered new exit (range 14) 13622 | -6/Garrison | Triggered checkpoint 13640 | -6/Garrison | Garrison Relay disabled 13715 | -6/Garrison | Entered Factory 13715 | -6/Factory | Accompanied by 4 allies 13849 | -6/Factory | Identified exit to Garrison 13856 | -6/Factory | Entered Garrison 13856 | -6/Garrison | Accompanied by 4 allies 13940 | -6/Garrison | Garrison Relay disabled 14048 | -6/Garrison | Triggered checkpoint 14094 | -6/Garrison | Triggered checkpoint 14212 | -6/Garrison | Discovered new exit (range 12) 14262 | -6/Garrison | Triggered checkpoint 14313 | -6/Garrison | Discovered new exit (range 5) 14429 | -6/Garrison | Triggered checkpoint 14612 | -6/Garrison | Triggered checkpoint 14688 | -6/Garrison | Garrison Relay disabled 14718 | -6/Garrison | Triggered checkpoint 14788 | -6/Garrison | Triggered checkpoint 14950 | -6/Garrison | Discovered new exit (range 14) 15023 | -6/Garrison | Spotted Executioner 15049 | -6/Garrison | Core integrity fell below 50% 15071 | -6/Garrison | Destroyed Executioner 15112 | -6/Garrison | Rewired Executioner 15271 | -6/Garrison | Discovered new exit (range 10) 15404 | -6/Garrison | Triggered checkpoint 15444 | -6/Garrison | Garrison Relay disabled 15489 | -6/Garrison | Expanded RIF knowledge: Autoassimilate 15516 | -6/Garrison | Triggered checkpoint 15652 | -6/Garrison | Entered Factory 15652 | -6/Factory | Accompanied by 2 allies 15855 | -6/Factory | Discovered new exit (range 18) 15874 | -6/Factory | Discovered new exit (range 16) 15901 | -6/Factory | Entered Extension 15901 | -6/Extension | Accompanied by 3 allies 16087 | -6/Extension | Rescued A7 16283 | -6/Extension | Build established: Bothacker-Mutant 16291 | -6/Extension | Rescued a captive Derelict 16379 | -6/Extension | Spotted B-75 Beast 16411 | -6/Extension | Spotted B-75 Beast 16431 | -6/Extension | Destroyed B-75 Beast 16455 | -6/Extension | Allies destroyed B-75 Beast 16549 | -6/Extension | Energy Cycler disabled 16549 | -6/Extension | Rescued a captive Derelict 16551 | -6/Extension | Rescued a captive Derelict 16951 | -6/Extension | First assault squad dispatched 17007 | -6/Extension | Discovered new exit (range 10) 17011 | -6/Extension | Discovered new exit (range 6) 17060 | -6/Extension | Entered Cetus 17060 | -6/Cetus | Accompanied by 2 allies (A7) 17065 | -6/Cetus | Acquired a Cetus Manufacturing Module code from A7 17084 | -6/Cetus | Spotted Cetus Guard 17084 | -6/Cetus | Spotted Cetus Guard 17098 | -6/Cetus | Allies destroyed Cetus Guard 17098 | -6/Cetus | Spotted Cetus Guard 17102 | -6/Cetus | Destroyed Cetus Guard 17102 | -6/Cetus | Spotted Cetus Guard 17108 | -6/Cetus | Destroyed Cetus Guard 17122 | -6/Cetus | Allies destroyed Cetus Guard 17193 | -6/Cetus | System corruption reached 10% 17273 | -6/Cetus | Started Cetus Manufacturing Module 17298 | -6/Cetus | Manufactured an Enhanced Grunt 17308 | -6/Cetus | Extracted ID and sensor layout for unrecognized location from A7's data core 17323 | -6/Cetus | Manufactured an Enhanced Grunt 17348 | -6/Cetus | Manufactured an Enhanced Grunt 17373 | -6/Cetus | Manufactured an Enhanced Grunt 17398 | -6/Cetus | Manufactured an Enhanced Grunt 17424 | -6/Cetus | Discovered new exit (range 15) 17449 | -6/Cetus | Entered Archives 17449 | -6/Archives | Accompanied by 5 allies 17536 | -6/Archives | Discovered new exit (range 16) 17576 | -6/Archives | Discovered new exit (range 16) 17752 | -6/Archives | Discovered new exit (range 15) 17996 | -6/Archives | Entered Hub_04(d) 17996 | -6/Hub_04(d) | Accompanied by 5 allies 18346 | -6/Hub_04(d) | First assault squad dispatched 18377 | -6/Hub_04(d) | Discovered new exit (range 6) 18439 | -6/Hub_04(d) | Discovered new exit (range 15) 18440 | -6/Hub_04(d) | Garrison activated, responded to threat 18480 | -6/Hub_04(d) | Identified exit to Garrison 18632 | -6/Hub_04(d) | Discovered new exit (range 8) 18714 | -6/Hub_04(d) | Entered Factory 18714 | -5/Factory | Evolved 2 slots: Power x1, Weapon x1 18767 | -5/Factory | Identified exit to DSF 18767 | -5/Factory | Entered DSF 18824 | -5/DSF | Additional patrols routed to DSF 18903 | -5/DSF | Lost 4 parts (2u2w) 19081 | -5/DSF | Discovered new exit (range 17) 19138 | -5/DSF | Entered Factory 19138 | -4/Factory | Evolved 2 slots: Utility x2 19291 | -4/Factory | Lost 5 parts (1n3u1w) 19465 | -4/Factory | Lost 3 parts (1p1u1w) 19625 | -4/Factory | Released all parts (3) 19628 | -4/Factory | Core integrity fell below 50% 19650 | -4/Factory | Lost 10 parts (2p3n2u3w) 19689 | -4/Factory | Core integrity fell below 20% 19700 | -4/Factory | Destroyed by H-77 Assassin with Coil Gun Last Messages --------------- 19694_ Penetrated by Slug. 19694_ Slug penetrates Wall. 19694_ Slug penetrates Nuclear Reactor. 19694_ Slug penetrates Wall. 19694_ Field strength at 83. 19695_ Field strength at 77. 19696_ Nuclear Reactor collapses. 19696_ Nuclear Reactor explodes. 19696_ Field strength at 71. 19697_ Field strength at 54. 19697_ Penetrated by Slug. 19697_ Slug penetrates Wall. 19697_ R-10 Processor collects Structural Scanner. 19698_ Field strength at 34. 19699_ Penetrated by Slug. 19699_ Field strength at 16. 19700_ Penetrated by Slug. 19700_ Stasis field depleted. 19700_ Acquired 20 matter. 19700_ Penetrated by Slug. Map ----- +----------------------------------------------------+ | ??""??????????????????????????# #?? | | ? ""??????????????????????????# #??? | | ??????????????????????????????# """ #????? | | ??????????????????????????? ??# """ #?????? | | ??????????????????????????? ??### """ #?????? | | ??????????????????????????? ????# ####### | | ???????????????????????????!????# """"" | | ???????????????????????????!????# """"" | | ???????????????????????????!????# """ = | | ??????????????????????????? ????# | | ??????????????????????????#/#???# """" | | ??????????????????????????# #???# """"" ## | | ??????????????????????????# #???# """ # | | ??????????????????????????# ##### # | | ??????????????????????????# # | | ??????????????????????????# l ! # | | ??????????????????????????# R # | | ???????????????##?????????#g############# # | | ??????? ##### ???????#Y#???????????##/###### | | ??????? ###### #######?????? ???# | | ??????? +?????? ??# | | ??????? ####Y #??????? ! #?# | | ??????? ### # ?????# "" #??????? #?# | | ???????????????##???????# * T ! #??????? #?# | | ????????????????????????# " #???????? #?## | | ????????????????????????#@R #????????#/##??? | | ???????????????????????#;! !] #????????? #???? | | ???????????????????????## ! #??????? #???? | | ????????????????????????# #??????? #???? | | ????????????????????????# R #????????#???? | | ????????????????????????# #????????????? | | ????????????????????????# ???????????? | | ???????????????????????? Hh ??????????? | | ??????????????????????? ???????????? | | ??????????????????????? h ???????????? | | ?????????????????????? ????????????? | | ????????????????????? w # ???????????? | | ?????????????????????##### ###### ???????????? | | ?????????????????????????# #???????????????????? | | ?????????????????????????# #???????????????????? | | ?????????????????????????? ????????????????????? | | ?????????????????????????????????????????????????? | | ?????????????????????????????????????????????????? | | ?????????????????????????????????????????????????? | | ?????????????????????????????????????????????????? | | ?????????????????????????????????????????????????? | | ?????????????????????????????????????????????????? | | ?????????????????????????????????????????????????? | | ?????????????????????????????????????????????????? | | ?????????????????????????????????????????????????? | +----------------------------------------------------+ Best States ------------- Heat Dissipation 62 Energy Generation 39 Energy Capacity 900 Matter Stores 300 Matter Capacity 300 Sight Range 22 Robot Scan Range 20 Terrain Scan Density 10 Additional Mass Support 6 Armor Coverage 1800 Core Shielding 20 Phase Shifting 10 Evasion (%) 55 Targeting Accuracy 6 Recoil Reduction 4 Relay Coupler Types 4 Relay Coupler Value 106 Item Schematics ----------------- Centrium Heavy Treads | -4/Factory | Scanalyzed Robot Schematics ------------------ None Fabricated ------------ Nothing Alien Tech Used ----------------- None Achievements -------------- Generalissimo Packrat Challenges ------------ None Game ------ Seed CarbideLightpackPenetrator Manual? 0 Play Time 02:52:48 Cumulative 123.7 hours Start 2022.07.06 @ 19:11:30 End 2022.07.06 @ 22:04:56 Sessions 1 Manual Loads 0 Difficulty Rogue Special Mode None Game No. 82 Rogue 61 Adventurer 13 Explorer 8 Win Type - Total 4 Types 3/0/1/0/0/0/0/0/0 Lore% 72 Gallery% 70 Achievement% 57 Wizard Run 0 Options --------- ASCII 0 Keyboard 0 Movement Numpad Keybinds 0 Fullscreen 2 Font 18/SmallcapsGlow Map View 76x50 Tactical HUD 1 Map Filters NONE Filters NONE Steam 1 RUN: 320962c2-f13e-437c-82db-8cac38d21be5